Cogmind - Beta 16 @@@ ROGUE MODE // 2025.10.27 @ 08:33:14 Player: Lazz Result: Destroyed by as-13046 with Assembled Rifle Performance ------------- Evolutions (0) 0 Regions Visited (2) 400 Robots Destroyed (11) 55 Value Destroyed (262) 262 Prototype IDs (0) 0 Alien Tech Used (0) 0 Bonus (0) 0 TOTAL SCORE: 717 Bonus ------- None Cogmind --------- Core Integrity 0/250 Matter 300/300 Energy 100/100 System Corruption 0% Temperature Cool (0) Movement Core (200) Ox3 Location -10/Mines Parts ------- > --- POWER (1) -------- (None) > --- PROPULSION (2) --- (None) > --- UTILITY (2) ------ Medium Storage Unit > --- WEAPON (2) ------- (None) > --- INVENTORY (10) --- Light Ion Engine EM Pulse Gun Light Assault Rifle Peak State ------------ > --- POWER ------------ Ion Engine > --- PROPULSION ------- Aluminum Leg Aluminum Leg > --- UTILITY ---------- Improved Heat Sink Small Storage Unit > --- WEAPON ----------- Medium Laser Medium Laser > --- INVENTORY -------- Ion Engine Light Treads Light Treads EM Pulse Gun [Rating: 9] Favorites ----------- Power Ion Engine Engine Ion Engine Propulsion Light Treads Treads Light Treads Leg Aluminum Leg Utility Improved Heat Sink Device Improved Heat Sink Storage Small Storage Unit Weapon Medium Laser Energy Gun Medium Laser Build | -11 -10 -10 ------- Run | Yrd Mat Min Slots Evolved . | . . . Power . | . . . Propulsion . | . . . Utility . | . . . Weapon . | . . . Parts Attached 12 | 6 2 4 Power 2 | 1 . 1 Engine 2 | 1 . 1 Core . | . . . Reactor . | . . . Propulsion 5 | 2 1 2 Treads 2 | . . 2 Leg 3 | 2 1 . Wheel . | . . . Hover . | . . . Flight . | . . . Utility 3 | 1 1 1 Device 1 | . 1 . Storage 2 | 1 . 1 Processor . | . . . Hackware . | . . . Protection . | . . . Artifact . | . . . Weapon 2 | 2 . . Energy Gun 2 | 2 . . Energy Cannon . | . . . Ballistic Gun . | . . . Ballistic Cannon . | . . . Launcher . | . . . Special Weapon . | . . . Impact Weapon . | . . . Slashing Weapon . | . . . Piercing Weapon . | . . . Special Melee Weapon . | . . . Unidentified Prototypes . | . . . Parts Lost 9 | . . 9 Power 2 | . . 2 Propulsion 4 | . . 4 Utility 1 | . . 1 Weapon 2 | . . 2 Highest Loss Streak 6 | . . 6 To Critical Strikes . | . . . Average Backups 2 | 2 4 2 Power . | . 1 . Propulsion . | . 2 . Utility . | . . . Weapon 1 | . 1 1 Tool/Special . | . . . Unused Backups 3 | . . 3 Power 1 | . . 1 Propulsion . | . . . Utility . | . . . Weapon 2 | . . 2 Tool/Special . | . . . Average Slot Usage (%) 93 | . 92 93 Engine 13 | . 14 12 Treads 16 | . . 23 Leg 9 | . 28 1 Device 11 | . 7 13 Storage 14 | . 14 14 Energy Gun 27 | . 28 26 Peak Build Rating 9 | 6 9 9 Average Rating 7 | 4 7 8 On Entrance 5 | . 6 9 Avg Prop Armor Cover (%) 9 | . 9 . Naked Turns . | . . . Heaviest Build 20 | 14 15 20 Greatest Support 40 | 20 20 40 Greatest Overweight (x) 3 | 1 1 3 Average Overweight (x) . | . . . Largest Inventory Capacity 10 | 8 8 10 Average Capacity 8 | 7 8 9 Most Carried 6 | 4 5 6 Average Carried 3 | 2 4 2 Final Capacity 10 | 8 8 10 Final Carried 4 | 4 4 3 Class Distribution -------------------- 100% | Mutant Dominant Class ---------------- Mutant | -10/Materials Mutant | -10/Mines Resources | -11 -10 -10 ----------- Run | Yrd Mat Min Matter Collected 347 | 232 75 40 Remotely . | . . . Salvage Created 411 | . 183 228 Parts 15 | . 9 6 Haulers Intercepted . | . . . Recyclers Shooed . | . . . Parts Field Recycled . | . . . Retrieved Matter . | . . . Parts Self-Destructed . | . . . Prevented . | . . . Parts Restored . | . . . Kills | -11 -10 -10 ------- Run | Yrd Mat Min Combat Hostiles Destroyed 13 | . 5 8 Guns 11 | . 5 6 AOE 1 | . . 1 Classes Destroyed 4 | . 3 1 Watcher 1 | . 1 . Swarmer 5 | . 2 3 Grunt 5 | . 3 2 Assembled 3 | . . 3 Best Kill Streak 3 | . 3 3 Combat Bots Only 3 | . 2 3 Max Kills in Single Turn 1 | . 1 1 Gunslinging . | . . . Exploded 1 | . . 1 Melee . | . . . Uniques/NPCs Destroyed . | . . . Combat | -11 -10 -10 -------- Run | Yrd Mat Min Hostile Shots Fired 104 | . 38 66 Missed 28 | . 12 16 Hits 76 | . 26 50 Melee 7 | . . 7 Projectile 69 | . 26 43 Critical Strikes 2 | . 1 1 Damage Taken 1083 | . 292 791 Core 255 | . 57 198 Absorbed by Shields . | . . . Core Remaining (%) 100 | 100 . . Volleys Fired 58 | . 24 34 Largest 2 | . 2 2 Hottest 100 | . 100 100 Shots Fired 102 | . 48 54 Gun 102 | . 48 54 Cannon . | . . . Launcher . | . . . Special . | . . . Kinetic . | . . . Thermal 102 | . 48 54 Explosive . | . . . Electromagnetic . | . . . Robot Hit Streak 8 | . 8 8 Robot Miss Streak 4 | . 4 2 Penetration Max . | . . . Secondary Targets 1 | . 1 . Max Gunslinging Chain 1 | . 1 . Shots Hit Robots 62 | . 26 36 Core Hits 23 | . 10 13 Critical Kills . | . . . Critical Parts Destroyed . | . . . Critical Strikes 9 | . 3 6 Burn 9 | . 3 6 Melee Attacks . | . . . Impact . | . . . Slashing . | . . . Piercing . | . . . Sneak Attacks . | . . . Combat Hostiles . | . . . Follow-up Attacks . | . . . Damage Inflicted 826 | . 352 474 Guns 818 | . 352 466 Cannons . | . . . Explosions . | . . . Melee . | . . . Ramming 8 | . . 8 Kinetic . | . . . Thermal 818 | . 352 466 Explosive . | . . . Electromagnetic . | . . . Impact . | . . . Slashing . | . . . Piercing . | . . . Highest Corruption . | . . . Average Corruption . | . . . Corruption Purged . | . . . Corruption Blocked . | . . . Overload Shots . | . . . Overflow Damage . | . . . Projectiles . | . . . Explosions . | . . . Melee . | . . . Knockbacks . | . . . Impact . | . . . Kinetic . | . . . Secondary . | . . . Self-Inflicted Damage . | . . . Shots . | . . . Rammed 3 | . . 3 Targets Rammed 3 | . . 3 Kicked . | . . . Crushed . | . . . Highest Temperature 531 | . 531 40 Average Temperature 179 | . 227 20 Received Heat Transfer 249 | . 132 117 Effects 5 | . 5 . Shutdowns 3 | . 3 . Matter Decay 1 | . 1 . Short Circuit 1 | . 1 . Siege Activations . | . . . Martial Activations . | . . . Shielding Activations . | . . . Robots Disrupted . | . . . Combat Hostiles . | . . . Robots Corrupted . | . . . Combat Hostiles . | . . . Parts Fried . | . . . Impact Corruptions . | . . . Robots Melted 1 | . . 1 Combat Hostiles 1 | . . 1 Parts Melted 8 | . 2 6 Heat Transferred 3071 | . 1258 1813 Parts Sabotaged . | . . . Parts Stolen . | . . . Parts Stripped . | . . . Power Chain Reactions . | . . . Alert | -11 -10 -10 ------- Run | Yrd Mat Min Maximum Alert Level . | . . . Low Security (%) 100 | 100 100 100 Level 1 . | . . . Level 2 . | . . . Level 3 . | . . . Level 4 . | . . . Level 5 . | . . . High Security . | . . . Max Security . | . . . Peak Influence 77 | . 77 75 Initial 18 | . . 18 Average 17 | . 32 14 Influence Increases 284 | . 144 140 Destroy 0b10 Robot/C 200 | . 100 100 Destroy 0b10 Robot/NC 10 | . 5 5 Destroy Leader 52 | . 32 20 Successful Hack 7 | . 7 . Lose Combat Pursuer 15 | . . 15 Influence Decreases 284 | . 97 187 Entered New Map 29 | . . 29 Time Decay 220 | . 97 123 Lost Part 35 | . . 35 Squads Dispatched 1 | . 1 . Investigation 1 | . 1 . Extermination . | . . . Reinforcement . | . . . Assault . | . . . Garrison . | . . . Intercept . | . . . Searches Triggered . | . . . Construction Impeded . | . . . Haulers Reinforced . | . . . Active Scanning Responses . | . . . Cargo Convoy Interrupts . | . . . Stealth | -11 -10 -10 --------- Run | Yrd Mat Min Distress Signals 2 | . 2 . Communications Jammed . | . . . Distress Signals . | . . . Times Spotted 21 | . 10 11 Peak Tracking Total 5 | . 5 3 Tactical Retreats 1 | . . 1 Traps | -11 -10 -10 ------- Run | Yrd Mat Min Traps Triggered . | . . . Indirectly . | . . . Trap Hack Attempts . | . . . Triggered . | . . . Disarmed . | . . . Reprogrammed . | . . . Reused 3 | . . 3 Traps Extracted . | . . . Installed 3 | . . 3 Triggered . | . . . Most Traps Carried 3 | . . 3 Machines | -11 -10 -10 ---------- Run | Yrd Mat Min Machines Disabled . | . . . Max in Single Turn . | . . . Machines Repaired . | . . . Machines Dismantled . | . . . Machines Sabotaged . | . . . Overloaded Fab Kills . | . . . Hacking | -11 -10 -10 --------- Run | Yrd Mat Min Machines Accessed 1 | . 1 . Terminals 1 | . 1 . Fabricators . | . . . Repair Stations . | . . . Recycling Units . | . . . Scanalyzers . | . . . Garrison Access . | . . . Total Hacks 5 | . 5 . Successful 1 | . 1 . Failed 4 | . 4 . Catastrophic . | . . . Database Lockouts . | . . . Manual . | . . . Terminals 5 | . 5 . Fabricators . | . . . Repair Stations . | . . . Recycling Units . | . . . Scanalyzers . | . . . Garrison Access . | . . . Terminal Hacks 1 | . 1 . Branch Access Points 1 | . 1 . Fabricator Hacks . | . . . Repair Station Hacks . | . . . Recycling Unit Hacks . | . . . Scanalyzer . | . . . Garrison Access Hacks . | . . . Unauthorized Hacks . | . . . Terminals . | . . . Fabricators . | . . . Repair Stations . | . . . Recycling Units . | . . . Scanalyzers . | . . . Garrison Access . | . . . Data Cores Recovered . | . . . Used . | . . . Hacking Detections 1 | . 1 . Full Trace Events 1 | . 1 . Feedback Events . | . . . Feedback Blocked . | . . . Robot Schematics Acquired . | . . . Robots Built . | . . . Authchips . | . . . Time . | . . . Total Robot Build Rating . | . . . Part Schematics Acquired . | . . . Parts Built . | . . . Authchips . | . . . Time . | . . . Total Part Build Rating . | . . . Part Studies Acquired . | . . . Parts Repaired . | . . . Time . | . . . Parts Recycled . | . . . Recycled Matter . | . . . Retrieved Matter . | . . . Retrieved Components . | . . . Parts Scanalyzed . | . . . Part Schematics Acquired . | . . . Parts Damaged . | . . . Bothacking | -11 -10 -10 ------------ Run | Yrd Mat Min Used RIF Installer . | . . . Robots Hacked . | . . . Non-combat . | . . . Combat . | . . . Robot Hacks Applied . | . . . Relay Couplers Released . | . . . Fabnet Peak Effective % . | . . . Robots Rewired . | . . . Allies Hacked . | . . . Hacks Repelled . | . . . Allies | -11 -10 -10 -------- Run | Yrd Mat Min Total Allies . | . . . Largest Group . | . . . Highest-Rated Group . | . . . Highest-Rated Ally . | . . . Total Orders . | . . . Ally Attacks . | . . . Total Damage . | . . . Kills . | . . . Allies Corrupted . | . . . Allies Melted . | . . . Intel | -11 -10 -10 ------- Run | Yrd Mat Min Active Infowar (turns) . | . . . Robot Analysis Total . | . . . Derelict Logs Recovered . | . . . Drone Launches . | . . . Drone Recoveries . | . . . Exploration | -11 -10 -10 ------------- Run | Yrd Mat Min Turns Passed 888 | 112 230 546 Spaces Moved 460 | 83 107 270 Core 26 | 17 . 9 Treads 249 | . . 249 Legs 185 | 66 107 12 Wheels . | . . . Hover . | . . . Flight . | . . . Fastest Speed 50 | 50 120 120 Average Speed 144 | 111 133 159 Slowest Speed 200 | 120 190 200 Overloaded Moves . | . . . Propulsion Burnouts . | . . . Robots Hopped . | . . . Potential Cave-ins . | . . . Cave-ins Triggered . | . . . Exploration Rate (%) 28 | 4 28 52 Regions Visited 2 Branch Regions 1 Pre-discovered Areas 1 | . . 1 Known Exits Taken 1 | . 1 . Unknown Exits Taken 1 | 1 . . Scrap Searched . | . . . Spaces Dug . | . . . Terrain Destroyed . | . . . Melee . | . . . Projectile . | . . . AOE . | . . . Terrain Rammed . | . . . Walls Destroyed . | . . . Machines Disabled . | . . . Actions | -11 -10 -10 --------- Run | Yrd Mat Min Total 580 | 103 146 331 Wait 23 | 5 11 7 Move 458 | 82 106 270 Hop . | . . . Pick Up 18 | 10 2 6 Fast Attach . | . . . Attach 10 | 6 1 3 Detach . | . . . Swap 2 | . 1 1 Drop 5 | . 1 4 Fire 58 | . 24 34 Melee . | . . . Ram . | . . . Kick . | . . . Crush 3 | . . 3 Escape Stasis . | . . . Rewire . | . . . Trap 3 | . . 3 Miscellaneous . | . . . Route ------- -11/Scrapyard -10/Materials (discovered 2 exits: *Min x2) -10/Mines (discovered 2 exits: [*Mat x2]) History --------- Turn | Location | Event 12 | -11/Scrapyard | Discovered new exit (range 15) 113 | -11/Scrapyard | Entered Materials 148 | -10/Materials | Identified exit to Mines 310 | -10/Materials | Build established: Mutant 343 | -10/Materials | Entered Mines 343 | -10/Mines | Discovered new exit (range 10) 405 | -10/Mines | Lost 3 parts (1p2n) 710 | -10/Mines | Found a hidden stash of uninstalled traps 745 | -10/Mines | Discovered new exit (range 9) 763 | -10/Mines | Assembled infested the area 768 | -10/Mines | Assisted by a Guerilla fighting off Assembled 815 | -10/Mines | Learned location of Storage (-8) 848 | -10/Mines | Core integrity fell below 50% 874 | -10/Mines | Core integrity fell below 20% 889 | -10/Mines | Destroyed by as-13046 with Assembled Rifle Last Messages --------------- Med. Laser destroyed. Slammed into as-40291. Dropped Explosive Trap. Installed Explosive Trap. as-53750 triggered Explosive Trap. An explosion rips through the floor. as-40291 destroyed. Ion Engine destroyed. Lgt. Treads destroyed. Imp. Heat Sink destroyed. as-53750 destroyed. Destroyed Asb. Hover Unit. Lgt. Treads destroyed. as-73922 destroyed. Dropped Explosive Trap. Med. Laser destroyed. Installed Explosive Trap. as-38132 triggered Explosive Trap. An explosion rips through the floor. as-38132 destroyed. Map ----- +----------------------------------------------------+ | ?#%#### ####???? | | ?# ##??? | | ?# #??? | | ?###### #?? | | ??????# #?? | | ?????# # ###### ##?? | | ?????# ## #?????? ##??? | | ?????## ## #???????#???? | | ??????### ## #???????????? | | ????????## ### #???????????? | | ?????????#####?# #???? #????? | | ????????????#### #???# #????? | | ????????????# #???# #????? | | ????????????# #####???# #????? | | ????????????# #???????# #????? | | ????????????# #??###??# #????? | | ????????????# #??# ?? #????? | | ????????????# ##?# #??# #????? | | ??????????### ### #??# #????? | | ??????????# ## #??# #????? | | ??????????# < ## #??# ###??? | | ??????????# ## #### ##?? | | ??????????## ## #?? | | ???????????## ### ### #??? | | ????????????# ##?# ### #??? | | ????????????# #??# ## @ #??? | | ????????????# #### ## ##??? | | ????????????# ### ##???? | | ????????????######### ##????? | | ????????????????????# % #?????? | | ???????????????????# a #?????? | | ???????????????????# #?????? | | ???????????????????# ###???? | | ???????????????????## % #???? | | ????????????????????# ##??? | | ???????????????####### ##?? | | ?????????????# % ##? | | ?????????????########## % #? | | ??????????????????????# %#? | | ?????????????????????# ##? | | ?????????????????????# ##?? | | ?????????????????????## ###??? | | ??????????????????????####????? | | ??????????????????????????????? | | ??????????????????????????????? | | ??????????????????????????????? | | ??????????????????????????????? | | ??????????????????????????????? | | ??????????????????????????????? | | ??????????????????????????????? | +----------------------------------------------------+ Best States ------------- Heat Dissipation 39 Energy Generation 10 Energy Capacity 250 Matter Stores 300 Matter Capacity 300 Sight Range 16 Terrain Scan Density 10 Evasion (%) 55 Recoil Reduction 2 Item Schematics ----------------- None Robot Schematics ------------------ None Fabricated ------------ Nothing Repaired ---------- Nothing Studied --------- None Alien Tech Used ----------------- None Achievements -------------- None Challenges ------------ None Game ------ Seed DiametricDisposableWand Manual? 0 Play Time 00:07:29 Cumulative 27.9 hours Start 2025.10.27 @ 08:25:45 End 2025.10.27 @ 08:33:14 Sessions 1 Manual Loads 0 Difficulty Rogue Special Mode None Game No. 35 Rogue 35 Adventurer 0 Explorer 0 Win Type - Total 0 Types 0/0/0/0/0/0/0/0/0/0 Lore% 26 Gallery% 28 Achievement% 21 Wizard Run 0 Options --------- Layout 2 ASCII 0 Keyboard 0 Movement Mouse Keybinds 0 Fullscreen 1 Font 16/SmallcapsGlow Map View 25x24 Zoom Use 97% Tactical HUD 0 Map Filters NONE Filters NONE Steam SD RUN: 5daa27c7-6513-4b5d-824e-3854e161bcf2